[Event "Titled Tuesday Blitz March 21 Late 2023"]
[White "Martinez Reyes, Pedro Ramon"]
[Black "Naroditsky, Daniel"]
[WhiteFideId "3901807"]
[BlackFideId "2026961"]
[WhiteElo "2340"]
[BlackElo "2633"]
[Result "0-1"]
[Round "02"]
[TimeControl "180+2"]
[Date "2023.03.21"]
[WhiteClock "0:00:16"]
[BlackClock "0:00:13"]

1. e4 {[%clk 0:03:00]}  g6 {[%clk 0:02:54]} 2. d4 {[%clk 0:03:00]}  Bg7 {[%clk 0:02:55]} 3. Nc3 {[%clk 0:03:01]}  c6 {[%clk 0:02:55]} 4. f4 {[%clk 0:02:58]}  d5 {[%clk 0:02:54]} 5. e5 {[%clk 0:02:59]}  Nh6 {[%clk 0:02:55]} 6. Be2 {[%clk 0:02:58]}  Nf5 {[%clk 0:02:50]} 7. Nf3 {[%clk 0:02:57]}  h5 {[%clk 0:02:49]} 8. O-O {[%clk 0:02:55]}  Nd7 {[%clk 0:02:47]} 9. Bd3 {[%clk 0:02:40]}  Nf8 {[%clk 0:02:42]} 10. Ne2 {[%clk 0:02:39]}  Qb6 {[%clk 0:02:35]} 11. a4 {[%clk 0:02:34]}  a5 {[%clk 0:02:33]} 12. c3 {[%clk 0:02:30]}  h4 {[%clk 0:02:31]} 13. Qe1 {[%clk 0:02:23]}  h3 {[%clk 0:02:23]} 14. g3 {[%clk 0:02:19]}  Nh6 {[%clk 0:02:22]} 15. Qd1 {[%clk 0:01:56]}  Bg4 {[%clk 0:02:20]} 16. Ra3 {[%clk 0:01:52]}  Ne6 {[%clk 0:02:17]} 17. Qb3 {[%clk 0:01:50]}  Qc7 {[%clk 0:02:10]} 18. Bd2 {[%clk 0:01:44]}  Nf5 {[%clk 0:02:06]} 19. Qd1 {[%clk 0:01:37]}  c5 {[%clk 0:02:00]} 20. Bb5+ {[%clk 0:01:32]}  Kf8 {[%clk 0:02:01]} 21. Qe1 {[%clk 0:01:21]}  Qb6 {[%clk 0:01:49]} 22. dxc5 {[%clk 0:01:12]}  Nxc5 {[%clk 0:01:45]} 23. Ned4 {[%clk 0:01:09]}  Ne4 {[%clk 0:01:19]} 24. Be3 {[%clk 0:01:09]}  Nxe3 {[%clk 0:01:08]} 25. Qxe3 {[%clk 0:01:10]}  e6 {[%clk 0:01:03]} 26. Ng5 {[%clk 0:01:08]}  Nxg5 {[%clk 0:00:56]} 27. fxg5 {[%clk 0:01:09]}  Kg8 {[%clk 0:00:56]} 28. Raa1 {[%clk 0:01:07]}  Qc7 {[%clk 0:00:51]} 29. Rae1 {[%clk 0:01:07]}  Rf8 {[%clk 0:00:48]} 30. Rf4 {[%clk 0:01:07]}  Bf5 {[%clk 0:00:47]} 31. Nxf5 {[%clk 0:00:48]}  gxf5 {[%clk 0:00:48]} 32. g4 {[%clk 0:00:46]}  fxg4 {[%clk 0:00:38]} 33. Rxg4 {[%clk 0:00:46]}  Rh5 {[%clk 0:00:38]} 34. Rg3 {[%clk 0:00:43]}  Rc8 {[%clk 0:00:35]} 35. Be2 {[%clk 0:00:38]}  Rh4 {[%clk 0:00:34]} 36. Bg4 {[%clk 0:00:33]}  Qc4 {[%clk 0:00:29]} 37. Qf3 {[%clk 0:00:27]}  d4 {[%clk 0:00:29]} 38. Rf1 {[%clk 0:00:26]}  Rc7 {[%clk 0:00:25]} 39. g6 {[%clk 0:00:26]}  fxg6 {[%clk 0:00:25]} 40. cxd4 {[%clk 0:00:24]}  Qxd4+ {[%clk 0:00:25]} 41. Kh1 {[%clk 0:00:23]}  Qxe5 {[%clk 0:00:22]} 42. Bxh3 {[%clk 0:00:23]}  Kh7 {[%clk 0:00:17]} 43. Bg2 {[%clk 0:00:16]}  Rcc4 {[%clk 0:00:13]} 44. Qd3 {[%clk 0:00:16]}  Rcg4 {[%clk 0:00:13]} 45. Rxg4 {[%clk 0:00:16]}  Qxh2# {[%clk 0:00:13]} 0-1


[Site "https://www.chess.com"]

[Event "Titled Tuesday Blitz March 21 Late 2023"]
[White "Skvortsov, Andrei"]
[Black "Erigaisi Arjun"]
[WhiteFideId "24108600"]
[BlackFideId "35009192"]
[WhiteElo "2259"]
[BlackElo "2737"]
[Result "0-1"]
[Round "02"]
[TimeControl "180+2"]
[Date "2023.03.21"]
[WhiteClock "0:01:59"]
[BlackClock "0:01:32"]

1. e4 {[%clk 0:03:00]}  d6 {[%clk 0:02:58]} 2. d4 {[%clk 0:03:00]}  g6 {[%clk 0:02:57]} 3. Nc3 {[%clk 0:02:59]}  Bg7 {[%clk 0:02:56]} 4. Be3 {[%clk 0:02:58]}  a6 {[%clk 0:02:56]} 5. Qd2 {[%clk 0:02:54]}  Nd7 {[%clk 0:02:56]} 6. h3 {[%clk 0:02:53]}  b5 {[%clk 0:02:56]} 7. a3 {[%clk 0:02:52]}  Bb7 {[%clk 0:02:54]} 8. Nge2 {[%clk 0:02:51]}  Ngf6 {[%clk 0:02:52]} 9. Ng3 {[%clk 0:02:49]}  c5 {[%clk 0:02:50]} 10. dxc5 {[%clk 0:02:44]}  dxc5 {[%clk 0:02:51]} 11. f3 {[%clk 0:02:39]}  O-O {[%clk 0:02:44]} 12. Bh6 {[%clk 0:02:37]}  Qc7 {[%clk 0:02:44]} 13. Bf4 {[%clk 0:02:36]}  Ne5 {[%clk 0:02:36]} 14. O-O-O {[%clk 0:02:20]}  b4 {[%clk 0:02:22]} 15. Nb1 {[%clk 0:02:16]}  Rfd8 {[%clk 0:02:21]} 16. Qe3 {[%clk 0:02:15]}  Rxd1+ {[%clk 0:02:19]} 17. Kxd1 {[%clk 0:02:15]}  Rd8+ {[%clk 0:02:20]} 18. Kc1 {[%clk 0:02:15]}  a5 {[%clk 0:01:37]} 19. Bb5 {[%clk 0:02:09]}  Ne8 {[%clk 0:01:32]} 20. Bxe8 {[%clk 0:02:06]}  Rxe8 {[%clk 0:01:33]} 21. Rd1 {[%clk 0:02:00]}  Nc4 {[%clk 0:01:32]} 22. Bxc7 {[%clk 0:01:59]}  Bxb2# {[%clk 0:01:32]} 0-1


[Site "https://www.chess.com"]

[Event "Titled Tuesday Blitz March 21 Late 2023"]
[White "Duda, Jan-Krzysztof"]
[Black "Matinian, Nikita"]
[WhiteFideId "1170546"]
[BlackFideId "24129100"]
[WhiteElo "2790"]
[BlackElo "2422"]
[Result "0-1"]
[Round "02"]
[TimeControl "180+2"]
[Date "2023.03.21"]
[WhiteClock "0:00:09"]
[BlackClock "0:00:28"]

1. d4 {[%clk 0:03:00]}  Nf6 {[%clk 0:02:59]} 2. Nf3 {[%clk 0:03:00]}  g6 {[%clk 0:03:00]} 3. c4 {[%clk 0:02:58]}  Bg7 {[%clk 0:03:00]} 4. Nc3 {[%clk 0:02:58]}  O-O {[%clk 0:03:00]} 5. e4 {[%clk 0:02:59]}  d6 {[%clk 0:03:01]} 6. h3 {[%clk 0:02:57]}  e5 {[%clk 0:03:00]} 7. d5 {[%clk 0:02:56]}  Nh5 {[%clk 0:02:57]} 8. g3 {[%clk 0:02:54]}  Na6 {[%clk 0:02:55]} 9. Nh4 {[%clk 0:02:49]}  Nc5 {[%clk 0:02:46]} 10. Be3 {[%clk 0:02:43]}  a5 {[%clk 0:02:43]} 11. Ng2 {[%clk 0:02:24]}  Bd7 {[%clk 0:02:27]} 12. Be2 {[%clk 0:02:18]}  Nf6 {[%clk 0:02:27]} 13. Qc2 {[%clk 0:02:18]}  Ne8 {[%clk 0:02:25]} 14. O-O-O {[%clk 0:02:00]}  f5 {[%clk 0:02:23]} 15. exf5 {[%clk 0:01:59]}  Bxf5 {[%clk 0:02:09]} 16. Qd2 {[%clk 0:01:59]}  a4 {[%clk 0:02:09]} 17. Bxc5 {[%clk 0:01:49]}  dxc5 {[%clk 0:02:09]} 18. g4 {[%clk 0:01:49]}  Bd7 {[%clk 0:02:07]} 19. Ne4 {[%clk 0:01:50]}  b6 {[%clk 0:01:57]} 20. Bd3 {[%clk 0:01:47]}  Nd6 {[%clk 0:01:55]} 21. a3 {[%clk 0:01:43]}  Rb8 {[%clk 0:01:25]} 22. Kb1 {[%clk 0:01:38]}  Rf3 {[%clk 0:01:22]} 23. Ne1 {[%clk 0:01:34]}  Rf4 {[%clk 0:01:21]} 24. f3 {[%clk 0:01:30]}  Qf8 {[%clk 0:01:16]} 25. Ka1 {[%clk 0:01:14]}  b5 {[%clk 0:01:16]} 26. Nxc5 {[%clk 0:01:06]}  Bc8 {[%clk 0:01:14]} 27. cxb5 {[%clk 0:01:05]}  Nxb5 {[%clk 0:01:11]} 28. Ne6 {[%clk 0:00:40]}  Bxe6 {[%clk 0:01:08]} 29. dxe6 {[%clk 0:00:41]}  e4 {[%clk 0:00:58]} 30. Bc4 {[%clk 0:00:30]}  Qxa3+ {[%clk 0:00:57]} 31. Ba2 {[%clk 0:00:31]}  Nc3 {[%clk 0:00:31]} 32. Qd8+ {[%clk 0:00:09]}  Rf8 {[%clk 0:00:28]} 0-1


[Site "https://www.chess.com"]

[Event "Titled Tuesday Blitz March 21 Late 2023"]
[White "Martynov, Pavel"]
[Black "Svane, Rasmus"]
[WhiteFideId "4101260"]
[BlackFideId "4657101"]
[WhiteElo "2314"]
[BlackElo "2597"]
[Result "1/2-1/2"]
[Round "02"]
[TimeControl "180+2"]
[Date "2023.03.21"]
[WhiteClock "0:00:09"]
[BlackClock "0:00:05"]

1. e4 {[%clk 0:03:00]}  c6 {[%clk 0:02:59]} 2. d4 {[%clk 0:03:00]}  d5 {[%clk 0:03:00]} 3. exd5 {[%clk 0:03:01]}  cxd5 {[%clk 0:03:00]} 4. c4 {[%clk 0:03:01]}  Nf6 {[%clk 0:03:00]} 5. Nc3 {[%clk 0:03:02]}  Nc6 {[%clk 0:03:00]} 6. Bg5 {[%clk 0:03:01]}  dxc4 {[%clk 0:02:55]} 7. d5 {[%clk 0:03:00]}  Ne5 {[%clk 0:02:55]} 8. Qd4 {[%clk 0:03:00]}  h6 {[%clk 0:02:55]} 9. Bh4 {[%clk 0:03:00]}  g5 {[%clk 0:02:50]} 10. Qxe5 {[%clk 0:02:51]}  gxh4 {[%clk 0:02:50]} 11. Bxc4 {[%clk 0:02:51]}  Bg7 {[%clk 0:02:30]} 12. Nf3 {[%clk 0:02:44]}  h3 {[%clk 0:02:17]} 13. gxh3 {[%clk 0:02:44]}  Qd6 {[%clk 0:01:58]} 14. Qe3 {[%clk 0:02:26]}  a6 {[%clk 0:01:42]} 15. Rg1 {[%clk 0:02:25]}  Kf8 {[%clk 0:01:42]} 16. Rd1 {[%clk 0:01:43]}  b5 {[%clk 0:01:41]} 17. Bb3 {[%clk 0:01:43]}  Bxh3 {[%clk 0:01:31]} 18. Nd4 {[%clk 0:01:26]}  Bd7 {[%clk 0:01:28]} 19. Ne6+ {[%clk 0:01:17]}  fxe6 {[%clk 0:01:20]} 20. dxe6 {[%clk 0:01:10]}  Qxh2 {[%clk 0:01:20]} 21. Rxg7 {[%clk 0:01:02]}  Kxg7 {[%clk 0:01:07]} 22. exd7 {[%clk 0:01:03]}  e5 {[%clk 0:00:35]} 23. Rd6 {[%clk 0:00:45]}  Rhf8 {[%clk 0:00:29]} 24. Re6 {[%clk 0:00:40]}  Rf7 {[%clk 0:00:21]} 25. Rxe5 {[%clk 0:00:30]}  Ng4 {[%clk 0:00:07]} 26. Rg5+ {[%clk 0:00:30]}  hxg5 {[%clk 0:00:08]} 27. Qxg5+ {[%clk 0:00:31]}  Kh8 {[%clk 0:00:02]} 28. d8=Q+ {[%clk 0:00:17]}  Rxd8 {[%clk 0:00:02]} 29. Qxd8+ {[%clk 0:00:18]}  Kg7 {[%clk 0:00:02]} 30. Qg5+ {[%clk 0:00:18]}  Kf8 {[%clk 0:00:03]} 31. Bxf7 {[%clk 0:00:17]}  Qxf2+ {[%clk 0:00:03]} 32. Kd1 {[%clk 0:00:13]}  Ne3+ {[%clk 0:00:04]} 33. Qxe3 {[%clk 0:00:13]}  Qxe3 {[%clk 0:00:05]} 34. Bb3 {[%clk 0:00:13]}  Qg1+ {[%clk 0:00:05]} 35. Kc2 {[%clk 0:00:12]}  Qh2+ {[%clk 0:00:06]} 36. Kc1 {[%clk 0:00:12]}  Qh1+ {[%clk 0:00:06]} 37. Bd1 {[%clk 0:00:12]}  Qg2 {[%clk 0:00:07]} 38. a3 {[%clk 0:00:13]}  Qg5+ {[%clk 0:00:07]} 39. Kb1 {[%clk 0:00:12]}  Qe5 {[%clk 0:00:08]} 40. Bb3 {[%clk 0:00:12]}  Ke7 {[%clk 0:00:08]} 41. Ka2 {[%clk 0:00:11]}  Kd6 {[%clk 0:00:08]} 42. Nd5 {[%clk 0:00:11]}  Kc5 {[%clk 0:00:08]} 43. Nc3 {[%clk 0:00:09]}  Kb6 {[%clk 0:00:08]} 44. a4 {[%clk 0:00:09]}  b4 {[%clk 0:00:06]} 45. Nd5+ {[%clk 0:00:08]}  Kc5 {[%clk 0:00:07]} 46. Kb1 {[%clk 0:00:06]}  a5 {[%clk 0:00:07]} 47. Ka2 {[%clk 0:00:07]}  Qd4 {[%clk 0:00:04]} 48. Ne7 {[%clk 0:00:07]}  Qe4 {[%clk 0:00:03]} 49. Nd5 {[%clk 0:00:05]}  Qxd5 {[%clk 0:00:02]} 50. Bxd5 {[%clk 0:00:05]}  Kxd5 {[%clk 0:00:02]} 51. Kb3 {[%clk 0:00:05]}  Kd4 {[%clk 0:00:03]} 52. Kc2 {[%clk 0:00:06]}  Ke3 {[%clk 0:00:03]} 53. Kc1 {[%clk 0:00:01]}  Kd3 {[%clk 0:00:03]} 54. Kd1 {[%clk 0:00:02]}  b3 {[%clk 0:00:02]} 55. Kc1 {[%clk 0:00:02]}  Ke2 {[%clk 0:00:02]} 56. Kb1 {[%clk 0:00:02]}  Kd2 {[%clk 0:00:03]} 57. Ka1 {[%clk 0:00:03]}  Kd3 {[%clk 0:00:03]} 58. Kb1 {[%clk 0:00:03]}  Kc4 {[%clk 0:00:04]} 59. Kc1 {[%clk 0:00:04]}  Kb4 {[%clk 0:00:05]} 60. Kb1 {[%clk 0:00:03]}  Kxa4 {[%clk 0:00:05]} 61. Ka1 {[%clk 0:00:03]}  Kb4 {[%clk 0:00:05]} 62. Kb1 {[%clk 0:00:04]}  Kc4 {[%clk 0:00:05]} 63. Ka1 {[%clk 0:00:05]}  Kd3 {[%clk 0:00:04]} 64. Kb1 {[%clk 0:00:05]}  a4 {[%clk 0:00:04]} 65. Kc1 {[%clk 0:00:05]}  Ke2 {[%clk 0:00:05]} 66. Kb1 {[%clk 0:00:06]}  Kd2 {[%clk 0:00:05]} 67. Ka1 {[%clk 0:00:06]}  Kd3 {[%clk 0:00:06]} 68. Kb1 {[%clk 0:00:06]}  Kd2 {[%clk 0:00:06]} 69. Ka1 {[%clk 0:00:07]}  Kd1 {[%clk 0:00:06]} 70. Kb1 {[%clk 0:00:07]}  Ke1 {[%clk 0:00:07]} 71. Kc1 {[%clk 0:00:08]}  Ke2 {[%clk 0:00:07]} 72. Kb1 {[%clk 0:00:08]}  Kd1 {[%clk 0:00:08]} 73. Ka1 {[%clk 0:00:09]}  a3 {[%clk 0:00:09]} 74. Kb1 {[%clk 0:00:09]}  a2+ {[%clk 0:00:04]} 75. Ka1 {[%clk 0:00:09]}  Ke1 {[%clk 0:00:05]} 1/2-1/2


[Site "https://www.chess.com"]

[Event "Titled Tuesday Blitz March 21 Late 2023"]
[White "Khripachenko, Alexander"]
[Black "Paravyan, David"]
[WhiteFideId "54184975"]
[BlackFideId "4194985"]
[WhiteElo "2384"]
[BlackElo "2577"]
[Result "0-1"]
[Round "02"]
[TimeControl "180+2"]
[Date "2023.03.21"]
[WhiteClock "0:00:02"]
[BlackClock "0:00:19"]

1. e4 {[%clk 0:03:00]}  e5 {[%clk 0:03:00]} 2. Nf3 {[%clk 0:02:58]}  Nf6 {[%clk 0:03:00]} 3. Nxe5 {[%clk 0:02:54]}  d6 {[%clk 0:03:00]} 4. Nf3 {[%clk 0:02:55]}  Nxe4 {[%clk 0:03:00]} 5. d4 {[%clk 0:02:55]}  d5 {[%clk 0:03:01]} 6. Bd3 {[%clk 0:02:55]}  Bf5 {[%clk 0:03:01]} 7. O-O {[%clk 0:02:51]}  Be7 {[%clk 0:03:02]} 8. c4 {[%clk 0:02:50]}  dxc4 {[%clk 0:03:01]} 9. Bxc4 {[%clk 0:02:49]}  O-O {[%clk 0:03:02]} 10. Nc3 {[%clk 0:02:47]}  Nd7 {[%clk 0:02:54]} 11. Re1 {[%clk 0:02:41]}  Nxc3 {[%clk 0:02:54]} 12. bxc3 {[%clk 0:02:41]}  Nb6 {[%clk 0:02:55]} 13. Bb3 {[%clk 0:02:38]}  Bf6 {[%clk 0:02:38]} 14. Ne5 {[%clk 0:02:33]}  Be6 {[%clk 0:02:01]} 15. Qf3 {[%clk 0:01:51]}  Bxb3 {[%clk 0:01:50]} 16. axb3 {[%clk 0:01:52]}  Qd5 {[%clk 0:01:51]} 17. Qxd5 {[%clk 0:01:08]}  Nxd5 {[%clk 0:01:52]} 18. c4 {[%clk 0:01:04]}  Nb4 {[%clk 0:01:50]} 19. Ba3 {[%clk 0:01:01]}  Nc2 {[%clk 0:01:46]} 20. Bxf8 {[%clk 0:00:56]}  Rxf8 {[%clk 0:01:47]} 21. Nd7 {[%clk 0:00:43]}  Rd8 {[%clk 0:01:46]} 22. Nxf6+ {[%clk 0:00:32]}  gxf6 {[%clk 0:01:47]} 23. d5 {[%clk 0:00:33]}  Nxe1 {[%clk 0:01:03]} 24. Rxe1 {[%clk 0:00:33]}  Kf8 {[%clk 0:01:04]} 25. g3 {[%clk 0:00:30]}  Rd6 {[%clk 0:01:04]} 26. f4 {[%clk 0:00:29]}  Rb6 {[%clk 0:01:03]} 27. Re3 {[%clk 0:00:29]}  a5 {[%clk 0:01:02]} 28. Kf2 {[%clk 0:00:28]}  Rb4 {[%clk 0:01:02]} 29. Rc3 {[%clk 0:00:25]}  Ke7 {[%clk 0:01:03]} 30. Ke3 {[%clk 0:00:25]}  a4 {[%clk 0:00:58]} 31. bxa4 {[%clk 0:00:25]}  Rxa4 {[%clk 0:00:58]} 32. Kd4 {[%clk 0:00:20]}  b5 {[%clk 0:00:53]} 33. Kc5 {[%clk 0:00:17]}  bxc4 {[%clk 0:00:53]} 34. Rxc4 {[%clk 0:00:18]}  Ra2 {[%clk 0:00:54]} 35. Kc6 {[%clk 0:00:12]}  Kd8 {[%clk 0:00:54]} 36. h4 {[%clk 0:00:02]}  f5 {[%clk 0:00:54]} 37. d6 {[%clk 0:00:02]}  Ra6+ {[%clk 0:00:54]} 38. Kd5 {[%clk 0:00:02]}  cxd6 {[%clk 0:00:52]} 39. Rb4 {[%clk 0:00:02]}  Ke7 {[%clk 0:00:52]} 40. Rb7+ {[%clk 0:00:03]}  Kf6 {[%clk 0:00:53]} 41. Rd7 {[%clk 0:00:03]}  Ra5+ {[%clk 0:00:53]} 42. Kd4 {[%clk 0:00:02]}  Ke6 {[%clk 0:00:53]} 43. Rd8 {[%clk 0:00:03]}  Ra3 {[%clk 0:00:52]} 44. Re8+ {[%clk 0:00:03]}  Kf6 {[%clk 0:00:52]} 45. Rd8 {[%clk 0:00:02]}  Ke7 {[%clk 0:00:51]} 46. Rg8 {[%clk 0:00:03]}  h6 {[%clk 0:00:46]} 47. Rg7 {[%clk 0:00:01]}  Kf6 {[%clk 0:00:46]} 48. Rg8 {[%clk 0:00:01]}  Rf3 {[%clk 0:00:45]} 49. Kd5 {[%clk 0:00:02]}  Rd3+ {[%clk 0:00:45]} 50. Kc4 {[%clk 0:00:03]}  Rd1 {[%clk 0:00:45]} 51. Kc3 {[%clk 0:00:03]}  d5 {[%clk 0:00:45]} 52. Rh8 {[%clk 0:00:03]}  Kg7 {[%clk 0:00:40]} 53. Rd8 {[%clk 0:00:03]}  Kg6 {[%clk 0:00:38]} 54. Kc2 {[%clk 0:00:03]}  Rg1 {[%clk 0:00:37]} 55. Kd2 {[%clk 0:00:03]}  Kh5 {[%clk 0:00:22]} 56. Rg8 {[%clk 0:00:03]}  Ra1 {[%clk 0:00:23]} 57. Rg7 {[%clk 0:00:04]}  Ra3 {[%clk 0:00:22]} 58. Rxf7 {[%clk 0:00:03]}  Kg4 {[%clk 0:00:22]} 59. Rg7+ {[%clk 0:00:03]}  Kf3 {[%clk 0:00:22]} 60. h5 {[%clk 0:00:03]}  Ke4 {[%clk 0:00:22]} 61. Re7+ {[%clk 0:00:02]}  Kd4 {[%clk 0:00:22]} 62. Re5 {[%clk 0:00:02]}  Rxg3 {[%clk 0:00:21]} 63. Rxf5 {[%clk 0:00:03]}  Rg2+ {[%clk 0:00:22]} 64. Ke1 {[%clk 0:00:02]}  Ke4 {[%clk 0:00:20]} 65. Rf6 {[%clk 0:00:03]}  d4 {[%clk 0:00:19]} 66. Rxh6 {[%clk 0:00:02]}  Kxf4 {[%clk 0:00:18]} 67. Re6 {[%clk 0:00:02]}  Kf5 {[%clk 0:00:16]} 68. Re8 {[%clk 0:00:02]}  Rh2 {[%clk 0:00:17]} 69. h6 {[%clk 0:00:03]}  Rxh6 {[%clk 0:00:17]} 70. Kd2 {[%clk 0:00:03]}  Rh3 {[%clk 0:00:17]} 71. Re7 {[%clk 0:00:02]}  Kf4 {[%clk 0:00:18]} 72. Re1 {[%clk 0:00:02]}  Re3 {[%clk 0:00:18]} 73. Rxe3 {[%clk 0:00:02]}  dxe3+ {[%clk 0:00:19]} 0-1


[Site "https://www.chess.com"]

[Event "Titled Tuesday Blitz March 21 Late 2023"]
[White "Fedoseev, Vladimir"]
[Black "Domingo Nunez, Ruben"]
[WhiteFideId "24130737"]
[BlackFideId "22245570"]
[WhiteElo "2752"]
[BlackElo "2404"]
[Result "1-0"]
[Round "02"]
[TimeControl "180+2"]
[Date "2023.03.21"]
[WhiteClock "0:00:26"]
[BlackClock "0:00:01"]

1. e4 {[%clk 0:03:00]}  Nf6 {[%clk 0:02:51]} 2. e5 {[%clk 0:02:59]}  Nd5 {[%clk 0:02:52]} 3. d4 {[%clk 0:02:59]}  d6 {[%clk 0:02:52]} 4. Nf3 {[%clk 0:02:59]}  c6 {[%clk 0:02:53]} 5. Bc4 {[%clk 0:02:58]}  Bf5 {[%clk 0:02:53]} 6. O-O {[%clk 0:02:57]}  Nd7 {[%clk 0:02:51]} 7. Nh4 {[%clk 0:02:54]}  Be6 {[%clk 0:02:44]} 8. Qe2 {[%clk 0:02:53]}  dxe5 {[%clk 0:02:27]} 9. dxe5 {[%clk 0:02:54]}  Qc7 {[%clk 0:02:28]} 10. f4 {[%clk 0:02:54]}  g6 {[%clk 0:02:25]} 11. Nd2 {[%clk 0:02:48]}  Nc5 {[%clk 0:01:58]} 12. f5 {[%clk 0:02:43]}  gxf5 {[%clk 0:01:57]} 13. Nxf5 {[%clk 0:02:44]}  Rg8 {[%clk 0:01:53]} 14. Nb3 {[%clk 0:02:35]}  Qb6 {[%clk 0:01:49]} 15. Kh1 {[%clk 0:02:02]}  O-O-O {[%clk 0:01:26]} 16. Nbd4 {[%clk 0:01:54]}  Nc7 {[%clk 0:00:56]} 17. Nxe6 {[%clk 0:01:47]}  fxe6 {[%clk 0:00:52]} 18. c3 {[%clk 0:01:36]}  Nd5 {[%clk 0:00:45]} 19. Nd4 {[%clk 0:01:32]}  Bg7 {[%clk 0:00:35]} 20. b4 {[%clk 0:01:15]}  Nxc3 {[%clk 0:00:25]} 21. bxc5 {[%clk 0:01:11]}  Qxc5 {[%clk 0:00:22]} 22. Bxe6+ {[%clk 0:01:09]}  Kb8 {[%clk 0:00:22]} 23. Qe3 {[%clk 0:00:54]}  Rgf8 {[%clk 0:00:16]} 24. Nf3 {[%clk 0:00:52]}  Qb5 {[%clk 0:00:09]} 25. Ba3 {[%clk 0:00:48]}  Nd5 {[%clk 0:00:02]} 26. Bxd5 {[%clk 0:00:47]}  Rxd5 {[%clk 0:00:03]} 27. Bxe7 {[%clk 0:00:47]}  Re8 {[%clk 0:00:04]} 28. Qg5 {[%clk 0:00:46]}  Bh8 {[%clk 0:00:04]} 29. Rae1 {[%clk 0:00:45]}  a5 {[%clk 0:00:04]} 30. Bd6+ {[%clk 0:00:42]}  Ka7 {[%clk 0:00:03]} 31. Qe3+ {[%clk 0:00:41]}  Ka8 {[%clk 0:00:03]} 32. Qa3 {[%clk 0:00:32]}  b6 {[%clk 0:00:03]} 33. Rb1 {[%clk 0:00:32]}  Qc4 {[%clk 0:00:03]} 34. Rfc1 {[%clk 0:00:32]}  Qf4 {[%clk 0:00:03]} 35. Qb3 {[%clk 0:00:28]}  Rb5 {[%clk 0:00:03]} 36. Qc2 {[%clk 0:00:27]}  c5 {[%clk 0:00:01]} 37. Rxb5 {[%clk 0:00:26]} 1-0


[Site "https://www.chess.com"]

[Event "Titled Tuesday Blitz March 21 Late 2023"]
[White "Diaz Perez, Michel Alejandro"]
[Black "Bortnyk, Olexandr"]
[WhiteFideId "3517179"]
[BlackFideId "14120828"]
[WhiteElo "2333"]
[BlackElo "2734"]
[Result "0-1"]
[Round "02"]
[TimeControl "180+2"]
[Date "2023.03.21"]
[WhiteClock "0:00:38"]
[BlackClock "0:02:13"]

1. d4 {[%clk 0:03:00]}  d6 {[%clk 0:03:00]} 2. e4 {[%clk 0:02:59]}  Nf6 {[%clk 0:03:00]} 3. Nc3 {[%clk 0:02:58]}  Nbd7 {[%clk 0:03:01]} 4. Nf3 {[%clk 0:02:58]}  e5 {[%clk 0:03:02]} 5. Bc4 {[%clk 0:02:59]}  Be7 {[%clk 0:03:03]} 6. O-O {[%clk 0:02:59]}  c6 {[%clk 0:03:03]} 7. a4 {[%clk 0:02:57]}  Qc7 {[%clk 0:03:04]} 8. Re1 {[%clk 0:02:57]}  h6 {[%clk 0:03:04]} 9. b3 {[%clk 0:02:50]}  Nf8 {[%clk 0:03:01]} 10. Ba3 {[%clk 0:02:46]}  Ng6 {[%clk 0:03:00]} 11. dxe5 {[%clk 0:02:44]}  dxe5 {[%clk 0:02:59]} 12. Bxe7 {[%clk 0:02:45]}  Qxe7 {[%clk 0:03:00]} 13. Nd2 {[%clk 0:02:26]}  O-O {[%clk 0:03:00]} 14. Bf1 {[%clk 0:02:23]}  Rd8 {[%clk 0:03:00]} 15. Qc1 {[%clk 0:02:22]}  Qb4 {[%clk 0:02:58]} 16. Ncb1 {[%clk 0:02:15]}  Be6 {[%clk 0:02:55]} 17. c3 {[%clk 0:02:01]}  Qe7 {[%clk 0:02:54]} 18. Nc4 {[%clk 0:02:00]}  Rd7 {[%clk 0:02:47]} 19. Nbd2 {[%clk 0:01:58]}  Rad8 {[%clk 0:02:48]} 20. Nf3 {[%clk 0:01:59]}  Bg4 {[%clk 0:02:43]} 21. Be2 {[%clk 0:01:57]}  Nxe4 {[%clk 0:02:42]} 22. h3 {[%clk 0:01:52]}  Bxf3 {[%clk 0:02:38]} 23. Bxf3 {[%clk 0:01:53]}  Nd2 {[%clk 0:02:38]} 24. Nxd2 {[%clk 0:01:43]}  Rxd2 {[%clk 0:02:39]} 25. b4 {[%clk 0:01:42]}  Nf4 {[%clk 0:02:35]} 26. Re3 {[%clk 0:01:15]}  Qg5 {[%clk 0:02:33]} 27. Kf1 {[%clk 0:01:15]}  f5 {[%clk 0:02:15]} 28. Rxe5 {[%clk 0:01:01]}  Rxf2+ {[%clk 0:02:13]} 29. Kg1 {[%clk 0:00:38]}  Rxg2+ {[%clk 0:02:13]} 0-1


[Site "https://www.chess.com"]

[Event "Titled Tuesday Blitz March 21 Late 2023"]
[White "Spata, German"]
[Black "Bluebaum, Matthias"]
[WhiteFideId "113026"]
[BlackFideId "24651516"]
[WhiteElo "2238"]
[BlackElo "2638"]
[Result "0-1"]
[Round "02"]
[TimeControl "180+2"]
[Date "2023.03.21"]
[WhiteClock "0:00:45"]
[BlackClock "0:02:17"]

1. Nf3 {[%clk 0:02:55]}  d5 {[%clk 0:03:00]} 2. e3 {[%clk 0:02:55]}  c5 {[%clk 0:03:00]} 3. b3 {[%clk 0:02:53]}  a6 {[%clk 0:03:00]} 4. Bb2 {[%clk 0:02:53]}  Nc6 {[%clk 0:03:00]} 5. d4 {[%clk 0:02:51]}  cxd4 {[%clk 0:03:01]} 6. Nxd4 {[%clk 0:02:51]}  Nf6 {[%clk 0:03:01]} 7. Be2 {[%clk 0:02:51]}  e6 {[%clk 0:03:02]} 8. O-O {[%clk 0:02:51]}  Bd6 {[%clk 0:03:03]} 9. c4 {[%clk 0:02:51]}  e5 {[%clk 0:02:58]} 10. Nxc6 {[%clk 0:02:49]}  bxc6 {[%clk 0:02:59]} 11. cxd5 {[%clk 0:02:33]}  cxd5 {[%clk 0:03:00]} 12. Nc3 {[%clk 0:02:34]}  Bb7 {[%clk 0:02:59]} 13. Rc1 {[%clk 0:02:28]}  O-O {[%clk 0:02:59]} 14. Na4 {[%clk 0:02:28]}  Qe7 {[%clk 0:02:55]} 15. Qc2 {[%clk 0:02:17]}  Rac8 {[%clk 0:02:50]} 16. Qf5 {[%clk 0:02:15]}  g6 {[%clk 0:02:47]} 17. Qg5 {[%clk 0:02:10]}  Kg7 {[%clk 0:02:47]} 18. Rxc8 {[%clk 0:01:27]}  Rxc8 {[%clk 0:02:46]} 19. Rc1 {[%clk 0:01:28]}  h6 {[%clk 0:02:45]} 20. Qh4 {[%clk 0:01:24]}  g5 {[%clk 0:02:37]} 21. Qh3 {[%clk 0:01:25]}  Rxc1+ {[%clk 0:02:33]} 22. Bxc1 {[%clk 0:01:24]}  Qc7 {[%clk 0:02:34]} 23. Bb2 {[%clk 0:01:13]}  Bc8 {[%clk 0:02:25]} 24. Qg3 {[%clk 0:00:51]}  Ne4 {[%clk 0:02:16]} 25. Qf3 {[%clk 0:00:45]}  g4 {[%clk 0:02:17]} 0-1


[Site "https://www.chess.com"]